[Event "The Allsvenskan 2024/25 Div I 3: SS Manhem - Lidkopings SS"]
[Site "Goteborgs Schackcentrum, Vegatan 20, Gothenburg, Sweden"]
[Date "2025.03.16"]
[Round "1.1"]
[White "Bergenwall, Henric"]
[Black "Winsnes, Rikard"]
[Result "1/2-1/2"]
[TimeControl "90 minutes for 40 moves + 30 minutes for the rest of the game + 30 seconds per move from move one."]
[BlackTitle "IM"]
[WhiteFideId "1747924"]
[BlackFideId "1700430"]
[WhiteElo "2019"]
[BlackElo "2357"]

1. e4 {[%clk 01:30:55]} {[%emt 00:00:04]} c5 {[%clk 01:14:21]} {[%emt
00:16:40]} 2. Nf3 {[%clk 01:30:40]} {[%emt 00:00:44]} d6 {[%clk 01:13:31]}
{[%emt 00:01:20]} 3. Bb5+ {[%clk 01:30:33]} {[%emt 00:00:36]} Bd7 {[%clk
01:13:38]} {[%emt 00:00:23]} 4. Bxd7+ {[%clk 01:30:40]} {[%emt 00:00:24]} Qxd7
{[%clk 01:14:03]} {[%emt 00:00:05]} 5. c4 {[%clk 01:30:51]} {[%emt 00:00:20]}
Nc6 {[%clk 01:13:24]} {[%emt 00:01:09]} 6. Nc3 {[%clk 01:30:47]} {[%emt
00:00:34]} g6 {[%clk 01:12:55]} {[%emt 00:00:59]} 7. d4 {[%clk 01:31:03]}
{[%emt 00:00:13]} cxd4 {[%clk 01:13:00]} {[%emt 00:00:26]} 8. Nxd4 {[%clk
01:31:26]} {[%emt 00:00:06]} Bg7 {[%clk 01:13:24]} {[%emt 00:00:05]} 9. Be3
{[%clk 01:31:39]} {[%emt 00:00:19]} Nf6 {[%clk 01:13:05]} {[%emt 00:00:49]} 10.
f3 {[%clk 01:31:45]} {[%emt 00:00:24]} O-O {[%clk 01:13:05]} {[%emt 00:00:29]}
11. O-O {[%clk 01:32:11]} {[%emt 00:00:05]} e6 {[%clk 01:12:11]} {[%emt
00:01:24]} 12. Rc1 {[%clk 01:30:35]} {[%emt 00:02:06]} Rfe8 {[%clk 01:09:19]}
{[%emt 00:03:21]} 13. Qd2 {[%clk 01:28:26]} {[%emt 00:02:39]} d5 {[%clk
01:08:00]} {[%emt 00:01:49]} 14. Nxc6 {[%clk 01:26:05]} {[%emt 00:02:53]} bxc6
{[%clk 01:07:52]} {[%emt 00:00:37]} 15. e5 {[%clk 01:25:42]} {[%emt 00:00:52]}
Nh5 {[%clk 00:58:40]} {[%emt 00:09:43]} 16. g4 {[%clk 01:25:32]} {[%emt
00:00:39]} Bxe5 {[%clk 00:58:47]} {[%emt 00:00:23]} 17. gxh5 {[%clk 01:25:17]}
{[%emt 00:00:46]} Qe7 {[%clk 00:58:44]} {[%emt 00:00:32]} 18. Ne2 {[%clk
01:22:16]} {[%emt 00:03:31]} Qh4 {[%clk 00:54:04]} {[%emt 00:05:09]} 19. Bf4
{[%clk 01:21:45]} {[%emt 00:01:02]} Qxh5 {[%clk 00:52:37]} {[%emt 00:01:58]} 20.
Ng3 {[%clk 01:21:55]} {[%emt 00:00:20]} Bxf4 {[%clk 00:52:59]} {[%emt
00:00:08]} 21. Qxf4 {[%clk 01:22:22]} {[%emt 00:00:03]} Qh3 {[%clk 00:53:02]}
{[%emt 00:00:27]} 22. Rfe1 {[%clk 01:20:32]} {[%emt 00:02:19]} a5 {[%clk
00:50:34]} {[%emt 00:02:59]} 23. Rc2 {[%clk 01:17:51]} {[%emt 00:03:11]} Rab8
{[%clk 00:49:39]} {[%emt 00:01:24]} 24. cxd5 {[%clk 01:16:49]} {[%emt
00:01:32]} exd5 {[%clk 00:48:44]} {[%emt 00:01:25]} 25. Rxe8+ {[%clk 01:15:47]}
{[%emt 00:01:32]} Rxe8 {[%clk 00:49:12]} {[%emt 00:00:02]} 26. Re2 {[%clk
01:16:04]} {[%emt 00:00:13]} Rxe2 {[%clk 00:47:27]} {[%emt 00:02:15]} 27. Nxe2
{[%clk 01:16:32]} {[%emt 00:00:03]} Qe6 {[%clk 00:47:46]} {[%emt 00:00:10]} 28.
Kf2 {[%clk 01:16:40]} {[%emt 00:00:23]} c5 {[%clk 00:47:07]} {[%emt 00:01:08]}
29. Qe3 {[%clk 01:15:45]} {[%emt 00:01:24]} Qd6 {[%clk 00:47:22]} {[%emt
00:00:15]} 30. f4 {[%clk 01:15:51]} {[%emt 00:00:25]} f6 {[%clk 00:47:03]}
{[%emt 00:00:49]} 31. b3 {[%clk 01:13:09]} {[%emt 00:03:13]} Kg7 {[%clk
00:47:22]} {[%emt 00:00:11]} 32. Qd2 {[%clk 01:12:40]} {[%emt 00:00:59]} Qd8
{[%clk 00:45:28]} {[%emt 00:02:23]} 33. Nc3 {[%clk 01:12:32]} {[%emt 00:00:38]}
d4 {[%clk 00:45:12]} {[%emt 00:00:46]} 34. Ne4 {[%clk 01:10:04]} {[%emt
00:02:58]} Qd5 {[%clk 00:45:05]} {[%emt 00:00:36]} 35. Ke1 {[%emt 00:12:39]}
1/2-1/2

[Event "The Allsvenskan 2024/25 Div I 3: SS Manhem - Lidkopings SS"]
[Site "Goteborgs Schackcentrum, Vegatan 20, Gothenburg, Sweden"]
[Date "2025.03.16"]
[Round "1.2"]
[White "Strom-Engdahl, Alexander"]
[Black "Alwaeli, Laith"]
[Result "1-0"]
[TimeControl "90 minutes for 40 moves + 30 minutes for the rest of the game + 30 seconds per move from move one."]
[WhiteTitle "FM"]
[BlackTitle "FM"]
[WhiteFideId "1741586"]
[BlackFideId "4801059"]
[WhiteElo "2328"]
[BlackElo "2087"]

1. e4 {[%clk 01:30:15]} {[%emt 00:00:44]} d5 {[%clk 01:24:01]} {[%emt
00:06:59]} 2. exd5 {[%clk 01:29:07]} {[%emt 00:01:38]} Qxd5 {[%clk 01:24:23]}
{[%emt 00:00:08]} 3. Nf3 {[%clk 01:29:04]} {[%emt 00:00:32]} c6 {[%clk
01:23:48]} {[%emt 00:01:06]} 4. d4 {[%clk 01:27:09]} {[%emt 00:02:24]} Bg4
{[%clk 01:18:06]} {[%emt 00:06:13]} 5. Be2 {[%clk 01:26:20]} {[%emt 00:01:19]}
Nf6 {[%clk 01:15:44]} {[%emt 00:02:52]} 6. O-O {[%clk 01:24:43]} {[%emt
00:02:07]} e6 {[%clk 01:13:53]} {[%emt 00:02:20]} 7. Bf4 {[%clk 01:24:12]}
{[%emt 00:01:02]} Be7 {[%clk 01:07:25]} {[%emt 00:06:58]} 8. c4 {[%clk
01:19:35]} {[%emt 00:05:08]} Qd8 {[%clk 01:06:57]} {[%emt 00:00:57]} 9. Nc3
{[%clk 01:19:00]} {[%emt 00:01:05]} O-O {[%clk 01:00:54]} {[%emt 00:06:33]} 10.
h3 {[%clk 01:15:27]} {[%emt 00:04:03]} Bh5 {[%clk 00:54:46]} {[%emt 00:06:37]}
11. g4 {[%clk 01:08:22]} {[%emt 00:07:36]} Bg6 {[%clk 00:53:19]} {[%emt
00:01:57]} 12. Ne5 {[%clk 01:07:52]} {[%emt 00:01:00]} Nbd7 {[%clk 00:47:19]}
{[%emt 00:06:30]} 13. Nxg6 {[%clk 01:05:31]} {[%emt 00:02:51]} hxg6 {[%clk
00:46:41]} {[%emt 00:01:09]} 14. Bf3 {[%clk 00:58:25]} {[%emt 00:07:35]} Nb6
{[%clk 00:45:55]} {[%emt 00:01:16]} 15. b3 {[%clk 00:55:56]} {[%emt 00:03:00]}
Qd7 {[%clk 00:39:48]} {[%emt 00:06:36]} 16. Qd2 {[%clk 00:51:35]} {[%emt
00:04:50]} Rad8 {[%clk 00:37:43]} {[%emt 00:02:37]} 17. Rad1 {[%clk 00:49:57]}
{[%emt 00:02:07]} Bb4 {[%clk 00:35:55]} {[%emt 00:02:18]} 18. Qc2 {[%clk
00:48:11]} {[%emt 00:02:16]} a6 {[%clk 00:23:28]} {[%emt 00:12:57]} 19. Kg2
{[%clk 00:42:55]} {[%emt 00:05:46]} Qc8 {[%clk 00:20:11]} {[%emt 00:03:48]} 20.
Ne4 {[%clk 00:40:03]} {[%emt 00:03:22]} Be7 {[%clk 00:17:55]} {[%emt 00:02:45]}
21. Rh1 {[%clk 00:36:13]} {[%emt 00:04:20]} Nxe4 {[%clk 00:14:17]} {[%emt
00:04:08]} 22. Qxe4 {[%clk 00:36:15]} {[%emt 00:00:28]} Rd7 {[%clk 00:09:50]}
{[%emt 00:04:57]} 23. h4 {[%clk 00:29:37]} {[%emt 00:07:09]} Qd8 {[%clk
00:09:01]} {[%emt 00:01:19]} 24. h5 {[%clk 00:29:14]} {[%emt 00:00:52]} g5
{[%clk 00:08:28]} {[%emt 00:01:03]} 25. Be3 {[%clk 00:27:39]} {[%emt 00:02:04]}
Nc8 {[%clk 00:05:49]} {[%emt 00:03:09]} 26. c5 {[%clk 00:25:21]} {[%emt
00:02:49]} Rd5 {[%clk 00:04:08]} {[%emt 00:02:12]} 27. Be2 {[%clk 00:21:16]}
{[%emt 00:04:35]} Qd7 {[%clk 00:02:33]} {[%emt 00:02:04]} 28. Bc4 {[%clk
00:18:17]} {[%emt 00:03:29]} f5 {[%clk 00:02:25]} {[%emt 00:00:39]} 29. gxf5
{[%clk 00:18:23]} {[%emt 00:00:24]} exf5 {[%clk 00:02:18]} {[%emt 00:00:36]} 30.
Qf3 {[%clk 00:16:37]} {[%emt 00:02:16]} f4 {[%clk 00:01:48]} {[%emt 00:00:59]}
31. Bc1 {[%clk 00:16:36]} {[%emt 00:00:32]} Qf5 {[%clk 00:00:58]} {[%emt
00:01:20]} 32. Rde1 {[%clk 00:14:00]} {[%emt 00:03:07]} Kh8 {[%clk 00:01:07]}
{[%emt 00:00:20]} 33. Bxd5 {[%clk 00:13:56]} {[%emt 00:00:35]} cxd5 {[%clk
00:01:26]} {[%emt 00:00:11]} 34. Re5 {[%clk 00:13:39]} {[%emt 00:00:46]} g4
{[%clk 00:01:51]} {[%emt 00:00:06]} 35. Qxd5 {[%clk 00:10:51]} {[%emt
00:03:18]} Qf6 {[%clk 00:00:41]} {[%emt 00:01:39]} 36. Qe4 {[%clk 00:09:33]}
{[%emt 00:01:48]} Bd8 {[%clk 00:00:52]} {[%emt 00:00:19]} 37. Re8 {[%clk
00:09:07]} {[%emt 00:00:56]} Ne7 {[%clk 00:00:34]} {[%emt 00:00:48]} 38. Rxf8+
{[%clk 00:09:30]} {[%emt 00:00:08]} Qxf8 {[%clk 00:00:59]} {[%emt 00:00:04]} 39.
Qxf4 {[%clk 00:09:48]} {[%emt 00:00:12]} 1-0

[Event "The Allsvenskan 2024/25 Div I 3: SS Manhem - Lidkopings SS"]
[Site "Goteborgs Schackcentrum, Vegatan 20, Gothenburg, Sweden"]
[Date "2025.03.16"]
[Round "1.3"]
[White "Fransson, Peter"]
[Black "Lundstrom, Mattias"]
[Result "1-0"]
[TimeControl "90 minutes for 40 moves + 30 minutes for the rest of the game + 30 seconds per move from move one."]
[WhiteFideId "1701142"]
[BlackFideId "1703536"]
[WhiteElo "2261"]
[BlackElo "2093"]

1. Nf3 {[%clk 01:30:29]} {[%emt 00:00:31]} d5 {[%clk 01:30:34]} {[%emt
00:00:27]} 2. g3 {[%clk 01:30:33]} {[%emt 00:00:26]} Nf6 {[%clk 01:30:40]}
{[%emt 00:00:24]} 3. Bg2 {[%clk 01:30:56]} {[%emt 00:00:07]} e6 {[%clk
01:28:47]} {[%emt 00:02:24]} 4. O-O {[%clk 01:29:14]} {[%emt 00:02:10]} Bd6
{[%clk 01:27:42]} {[%emt 00:01:35]} 5. d3 {[%clk 01:27:00]} {[%emt 00:02:44]}
O-O {[%clk 01:25:41]} {[%emt 00:02:30]} 6. Nbd2 {[%clk 01:26:19]} {[%emt
00:01:12]} b6 {[%clk 01:21:56]} {[%emt 00:04:16]} 7. e4 {[%clk 01:25:35]}
{[%emt 00:01:13]} dxe4 {[%clk 01:21:43]} {[%emt 00:00:43]} 8. Ng5 {[%clk
01:25:27]} {[%emt 00:00:39]} Bb7 {[%clk 01:18:14]} {[%emt 00:03:59]} 9. Ndxe4
{[%clk 01:21:15]} {[%emt 00:04:42]} Nxe4 {[%clk 01:18:09]} {[%emt 00:00:35]} 10.
Nxe4 {[%clk 01:19:49]} {[%emt 00:01:56]} c6 {[%clk 01:17:47]} {[%emt 00:00:52]}
11. Nxd6 {[%clk 01:10:09]} {[%emt 00:10:10]} Qxd6 {[%clk 01:18:10]} {[%emt
00:00:08]} 12. d4 {[%clk 01:10:13]} {[%emt 00:00:26]} Nd7 {[%clk 01:13:57]}
{[%emt 00:04:41]} 13. c3 {[%clk 01:08:22]} {[%emt 00:02:22]} Rac8 {[%clk
01:06:35]} {[%emt 00:07:51]} 14. Re1 {[%clk 01:05:55]} {[%emt 00:02:57]} Nf6
{[%clk 00:51:19]} {[%emt 00:15:47]} 15. Bg5 {[%clk 00:59:02]} {[%emt 00:07:22]}
Nd5 {[%clk 00:49:49]} {[%emt 00:02:00]} 16. Qg4 {[%clk 00:54:41]} {[%emt
00:04:52]} Rfe8 {[%clk 00:48:28]} {[%emt 00:01:51]} 17. Bxd5 {[%clk 00:47:44]}
{[%emt 00:07:27]} exd5 {[%clk 00:47:47]} {[%emt 00:01:11]} 18. Bf4 {[%clk
00:47:43]} {[%emt 00:00:31]} Qd8 {[%clk 00:45:30]} {[%emt 00:02:47]} 19. Bh6
{[%clk 00:38:57]} {[%emt 00:09:16]} g6 {[%clk 00:43:20]} {[%emt 00:02:39]} 20.
Qf4 {[%clk 00:37:10]} {[%emt 00:02:17]} Re6 {[%clk 00:42:18]} {[%emt 00:01:32]}
21. Rxe6 {[%clk 00:36:41]} {[%emt 00:01:00]} fxe6 {[%clk 00:42:40]} {[%emt
00:00:08]} 22. Re1 {[%clk 00:36:55]} {[%emt 00:00:16]} Qe7 {[%clk 00:40:23]}
{[%emt 00:02:46]} 23. Re3 {[%clk 00:36:30]} {[%emt 00:00:55]} Re8 {[%clk
00:38:22]} {[%emt 00:02:32]} 24. Qe5 {[%clk 00:34:30]} {[%emt 00:02:30]} c5
{[%clk 00:36:01]} {[%emt 00:02:51]} 25. Rf3 {[%clk 00:33:58]} {[%emt 00:01:02]}
cxd4 {[%clk 00:36:25]} {[%emt 00:00:06]} 26. cxd4 {[%clk 00:34:25]} {[%emt
00:00:03]} a6 {[%clk 00:33:38]} {[%emt 00:03:17]} 27. h4 {[%clk 00:34:42]}
{[%emt 00:00:13]} Bc8 {[%clk 00:33:01]} {[%emt 00:01:07]} 28. Rf6 {[%clk
00:28:09]} {[%emt 00:07:02]} Bd7 {[%clk 00:33:18]} {[%emt 00:00:13]} 29. h5
{[%clk 00:28:30]} {[%emt 00:00:10]} gxh5 {[%clk 00:32:49]} {[%emt 00:00:59]} 30.
Qg5+ {[%clk 00:28:46]} {[%emt 00:00:14]} Kh8 {[%clk 00:33:13]} {[%emt
00:00:05]} 31. Rf8+ {[%clk 00:29:01]} {[%emt 00:00:23]} 1-0

[Event "The Allsvenskan 2024/25 Div I 3: SS Manhem - Lidkopings SS"]
[Site "Goteborgs Schackcentrum, Vegatan 20, Gothenburg, Sweden"]
[Date "2025.03.16"]
[Round "1.4"]
[White "Welin, Mats"]
[Black "Jonsson, Mose"]
[Result "1-0"]
[TimeControl "90 minutes for 40 moves + 30 minutes for the rest of the game + 30 seconds per move from move one."]
[WhiteTitle "FM"]
[WhiteFideId "1705180"]
[BlackFideId "1756885"]
[WhiteElo "2296"]
[BlackElo "1941"]

1. e4 {[%clk 01:30:38]} {[%emt 00:00:21]} c6 {[%clk 01:30:56]} {[%emt
00:00:06]} 2. d4 {[%clk 01:30:32]} {[%emt 00:00:35]} d5 {[%clk 01:31:25]}
{[%emt 00:00:02]} 3. e5 {[%clk 01:30:19]} {[%emt 00:00:42]} Bf5 {[%clk
01:31:45]} {[%emt 00:00:12]} 4. Nf3 {[%clk 01:30:17]} {[%emt 00:00:30]} e6
{[%clk 01:32:00]} {[%emt 00:00:16]} 5. Be2 {[%clk 01:30:06]} {[%emt 00:00:40]}
c5 {[%clk 01:32:05]} {[%emt 00:00:25]} 6. c3 {[%clk 01:28:12]} {[%emt
00:02:24]} Nc6 {[%clk 01:31:41]} {[%emt 00:00:55]} 7. O-O {[%clk 01:28:05]}
{[%emt 00:00:36]} Qb6 {[%clk 01:29:16]} {[%emt 00:02:55]} 8. dxc5 {[%clk
01:27:06]} {[%emt 00:01:30]} Bxc5 {[%clk 01:28:57]} {[%emt 00:00:48]} 9. b4
{[%clk 01:26:39]} {[%emt 00:00:56]} Be7 {[%clk 01:29:05]} {[%emt 00:00:22]} 10.
Be3 {[%clk 01:26:00]} {[%emt 00:01:10]} Qc7 {[%clk 01:29:19]} {[%emt 00:00:15]}
11. b5 {[%clk 01:24:46]} {[%emt 00:01:44]} Na5 {[%clk 01:27:33]} {[%emt
00:02:16]} 12. Qa4 {[%clk 01:24:00]} {[%emt 00:01:15]} b6 {[%clk 01:26:05]}
{[%emt 00:01:59]} 13. c4 {[%clk 01:22:43]} {[%emt 00:01:47]} dxc4 {[%clk
01:24:00]} {[%emt 00:02:35]} 14. Rc1 {[%clk 01:20:44]} {[%emt 00:02:29]} Nh6
{[%clk 01:22:30]} {[%emt 00:02:00]} 15. Nbd2 {[%clk 01:19:02]} {[%emt
00:02:12]} c3 {[%clk 01:20:32]} {[%emt 00:02:29]} 16. Ne4 {[%clk 01:08:55]}
{[%emt 00:10:37]} Bg6 {[%clk 01:17:24]} {[%emt 00:03:38]} 17. Rxc3 {[%clk
01:05:00]} {[%emt 00:04:25]} Qb7 {[%clk 01:17:19]} {[%emt 00:00:35]} 18. Nfg5
{[%clk 00:55:30]} {[%emt 00:10:00]} O-O {[%clk 01:15:48]} {[%emt 00:02:01]} 19.
Bf3 {[%clk 00:52:31]} {[%emt 00:03:28]} Qb8 {[%clk 01:09:20]} {[%emt 00:06:58]}
20. Nd6 {[%clk 00:48:04]} {[%emt 00:04:57]} Bxd6 {[%clk 01:07:19]} {[%emt
00:02:30]} 21. exd6 {[%clk 00:47:47]} {[%emt 00:00:48]} Qxd6 {[%clk 01:07:01]}
{[%emt 00:00:48]} 22. Bxa8 {[%clk 00:47:19]} {[%emt 00:00:58]} Rxa8 {[%clk
01:07:18]} {[%emt 00:00:13]} 23. Rac1 {[%clk 00:41:59]} {[%emt 00:05:50]} Rd8
{[%clk 01:04:37]} {[%emt 00:03:11]} 24. Rc8 {[%clk 00:39:14]} {[%emt 00:03:14]}
Nf5 {[%clk 01:02:47]} {[%emt 00:02:21]} 25. Qf4 {[%clk 00:35:32]} {[%emt
00:04:12]} Qd7 {[%clk 00:59:43]} {[%emt 00:03:33]} 26. Qb8 {[%clk 00:34:35]}
{[%emt 00:01:27]} Nc6 {[%clk 00:59:03]} {[%emt 00:01:11]} 27. Rxd8+ {[%clk
00:25:05]} {[%emt 00:10:01]} Nxd8 {[%clk 00:59:31]} {[%emt 00:00:02]} 28. h3
{[%clk 00:23:24]} {[%emt 00:02:10]} Nxe3 {[%clk 00:58:11]} {[%emt 00:01:50]} 29.
fxe3 {[%clk 00:23:09]} {[%emt 00:00:46]} Qd2 {[%clk 00:58:11]} {[%emt
00:00:30]} 30. Rc8 {[%clk 00:23:00]} {[%emt 00:00:38]} Qxe3+ {[%clk 00:56:17]}
{[%emt 00:02:24]} 31. Kh2 {[%clk 00:23:13]} {[%emt 00:00:19]} Kf8 {[%clk
00:56:28]} {[%emt 00:00:18]} 32. Qd6+ {[%clk 00:23:28]} {[%emt 00:00:14]} 1-0

[Event "The Allsvenskan 2024/25 Div I 3: SS Manhem - Lidkopings SS"]
[Site "Goteborgs Schackcentrum, Vegatan 20, Gothenburg, Sweden"]
[Date "2025.03.16"]
[Round "1.5"]
[White "Isurina Mariano, Cristine Rose"]
[Black "Loay, Sameer"]
[Result "0-1"]
[TimeControl "90 minutes for 40 moves + 30 minutes for the rest of the game + 30 seconds per move from move one."]
[WhiteTitle "WIM"]
[BlackTitle "IM"]
[WhiteFideId "5201071"]
[BlackFideId "8104239"]
[WhiteElo "1998"]
[BlackElo "2216"]

1. e4 {[%clk 01:30:45]} {[%emt 00:00:01]} c5 {[%clk 01:30:53]} {[%emt
00:00:07]} 2. Ne2 {[%clk 01:31:07]} {[%emt 00:00:08]} Nc6 {[%clk 01:31:19]}
{[%emt 00:00:04]} 3. Nbc3 {[%clk 01:31:26]} {[%emt 00:00:11]} Nf6 {[%clk
01:31:44]} {[%emt 00:00:06]} 4. g3 {[%clk 01:31:18]} {[%emt 00:00:37]} d5
{[%clk 01:29:03]} {[%emt 00:03:11]} 5. exd5 {[%clk 01:31:22]} {[%emt 00:00:27]}
Nxd5 {[%clk 01:29:28]} {[%emt 00:00:05]} 6. Bg2 {[%clk 01:31:46]} {[%emt
00:00:05]} Nxc3 {[%clk 01:29:53]} {[%emt 00:00:05]} 7. Nxc3 {[%clk 01:31:33]}
{[%emt 00:00:43]} e6 {[%clk 01:25:52]} {[%emt 00:04:31]} 8. d3 {[%clk
01:31:58]} {[%emt 00:00:05]} Be7 {[%clk 01:26:19]} {[%emt 00:00:03]} 9. O-O
{[%clk 01:32:21]} {[%emt 00:00:07]} O-O {[%clk 01:26:37]} {[%emt 00:00:12]} 10.
Be3 {[%clk 01:28:11]} {[%emt 00:04:40]} Qd7 {[%clk 01:23:27]} {[%emt 00:03:39]}
11. f4 {[%clk 01:23:01]} {[%emt 00:05:41]} b6 {[%clk 01:18:03]} {[%emt
00:05:55]} 12. Qh5 {[%clk 01:20:31]} {[%emt 00:03:00]} Bb7 {[%clk 01:13:26]}
{[%emt 00:05:06]} 13. g4 {[%clk 01:19:16]} {[%emt 00:01:45]} Nd4 {[%clk
01:07:44]} {[%emt 00:06:11]} 14. Rf2 {[%clk 01:18:54]} {[%emt 00:00:53]} Bxg2
{[%clk 00:58:11]} {[%emt 00:10:03]} 15. Rxg2 {[%clk 01:17:46]} {[%emt
00:01:39]} Nf3+ {[%clk 00:52:49]} {[%emt 00:05:51]} 16. Kf2 {[%clk 01:17:27]}
{[%emt 00:00:49]} Nd4 {[%clk 00:51:38]} {[%emt 00:01:42]} 17. Rc1 {[%clk
01:14:11]} {[%emt 00:03:44]} Qc6 {[%clk 00:51:29]} {[%emt 00:00:40]} 18. Bxd4
{[%clk 01:12:34]} {[%emt 00:02:08]} cxd4 {[%clk 00:51:54]} {[%emt 00:00:04]} 19.
Ne4 {[%clk 01:12:58]} {[%emt 00:00:05]} g6 {[%clk 00:47:47]} {[%emt 00:04:38]}
20. Qh3 {[%clk 01:13:08]} {[%emt 00:00:21]} f5 {[%clk 00:47:24]} {[%emt
00:00:52]} 21. gxf5 {[%clk 01:08:05]} {[%emt 00:05:32]} Rxf5 {[%clk 00:45:54]}
{[%emt 00:02:01]} 22. Kg1 {[%clk 00:48:52]} {[%emt 00:19:43]} Rxf4 {[%clk
00:42:34]} {[%emt 00:03:50]} 23. Re1 {[%clk 00:46:06]} {[%emt 00:03:15]} e5
{[%clk 00:32:33]} {[%emt 00:10:33]} 24. Ng3 {[%clk 00:45:09]} {[%emt 00:01:26]}
Bf6 {[%clk 00:32:37]} {[%emt 00:00:26]} 25. Qh6 {[%clk 00:37:32]} {[%emt
00:08:07]} Bg7 {[%clk 00:30:39]} {[%emt 00:02:27]} 26. Qh3 {[%clk 00:36:03]}
{[%emt 00:01:59]} Raf8 {[%clk 00:30:16]} {[%emt 00:00:54]} 27. Ne4 {[%clk
00:31:01]} {[%emt 00:05:32]} R8f5 {[%clk 00:27:34]} {[%emt 00:03:11]} 28. c4
{[%clk 00:25:52]} {[%emt 00:05:41]} Rh5 {[%clk 00:25:38]} {[%emt 00:02:26]} 29.
Qg3 {[%clk 00:25:20]} {[%emt 00:01:01]} Qe6 {[%clk 00:25:59]} {[%emt 00:00:09]}
30. Nf2 {[%clk 00:19:37]} {[%emt 00:06:14]} Qf5 {[%clk 00:25:42]} {[%emt
00:00:46]} 31. Rf1 {[%clk 00:17:01]} {[%emt 00:03:06]} Bf6 {[%clk 00:24:50]}
{[%emt 00:01:22]} 32. h3 {[%clk 00:06:23]} {[%emt 00:11:09]} Bh4 {[%clk
00:17:18]} {[%emt 00:08:01]} 33. Qh2 {[%clk 00:06:48]} {[%emt 00:00:05]} Rf3
{[%clk 00:17:37]} {[%emt 00:00:11]} 34. Rg4 {[%clk 00:03:31]} {[%emt 00:03:47]}
Bxf2+ {[%clk 00:17:17]} {[%emt 00:00:50]} 35. Rxf2 {[%clk 00:03:48]} {[%emt
00:00:13]} Rhxh3 {[%clk 00:15:13]} {[%emt 00:02:34]} 36. Qxh3 {[%clk 00:04:00]}
{[%emt 00:00:18]} Rxf2 {[%clk 00:15:40]} {[%emt 00:00:03]} 37. Qh4 {[%clk
00:01:56]} {[%emt 00:02:34]} Rf1+ {[%clk 00:14:17]} {[%emt 00:01:53]} 38. Kh2
{[%clk 00:02:02]} {[%emt 00:00:24]} Qf2+ {[%clk 00:14:15]} {[%emt 00:00:31]} 39.
Qxf2 {[%clk 00:02:07]} {[%emt 00:00:26]} Rxf2+ {[%clk 00:14:42]} {[%emt
00:00:03]} 40. Rg2 {[%clk 00:02:20]} {[%emt 00:00:17]} Rxg2+ {[%clk 00:14:35]}
{[%emt 00:00:37]} 41. Kxg2 {[%clk 00:02:43]} {[%emt 00:00:08]} a5 {[%clk
00:13:19]} {[%emt 00:01:45]} 42. a3 {[%clk 00:03:04]} {[%emt 00:00:09]} a4
{[%clk 00:13:38]} {[%emt 00:00:10]} 43. Kf3 {[%clk 00:03:30]} {[%emt 00:00:04]}
Kf7 {[%clk 00:14:05]} {[%emt 00:00:04]} 44. Ke4 {[%clk 00:03:56]} {[%emt
00:00:04]} Ke6 {[%clk 00:14:32]} {[%emt 00:00:03]} 0-1